bitfinex-derivatives/quotes_BTCF0:USTF0_20241128
["timestamp","ask_amount","ask_price","bid_price","bid_amount"]
[1732829747222,8.569e-05,95010.0,95006.0,0.3608]
[1732829747423,0.052614,95007.0,95006.0,0.413414]
[1732829749417,0.056614,95007.0,95006.0,0.413414]
[1732829750419,0.059614,95007.0,95006.0,0.413414]
[1732829752418,0.007,95007.0,95006.0,0.413414]
[1732829753024,0.007,95007.0,95006.0,0.60256118]
[1732829753632,0.059614,95007.0,95006.0,0.60256118]
[1732829753816,0.007,95007.0,95006.0,0.413414]
[1732829754214,0.059614,95007.0,95006.0,0.413414]
[1732829754926,0.007,95007.0,95006.0,0.413414]
[1732829757131,0.007,95007.0,95006.0,0.407414]
[1732829757923,0.007,95007.0,95006.0,0.723174]
[1732829758114,8.569e-05,95010.0,95009.0,0.062613]
[1732829758422,8.569e-05,95010.0,95009.0,0.423413]
[1732829759614,0.00908569,95010.0,95009.0,0.423413]
[1732829760130,0.00908569,95010.0,95009.0,0.739173]
[1732829760627,0.095799,95035.0,95034.0,0.052599]
[1732829760836,0.052595,95042.0,95041.0,0.052593]
[1732829761129,0.14104,95043.0,95042.0,0.052595]
[1732829761636,0.19374581,95043.0,95042.0,0.052595]
[1732829762924,0.19474581,95043.0,95042.0,0.056595]
[1732829764128,0.19574581,95043.0,95042.0,0.063595]
[1732829764333,0.19574581,95043.0,95042.0,0.011]
[1732829764535,0.51138581,95043.0,95042.0,0.011]
[1732829765228,0.19574581,95043.0,95042.0,0.011]
[1732829765836,0.19570581,95043.0,95042.0,0.011]
[1732829772038,0.19570581,95043.0,95042.0,0.005]
[1732829773738,0.00211181,95043.0,95042.0,0.057595]
[1732829774439,0.00211181,95043.0,95042.0,0.373235]
[1732829774939,0.00611181,95043.0,95042.0,0.369235]
[1732829775136,0.01511181,95043.0,95042.0,0.370235]
[1732829775526,0.01511181,95043.0,95042.0,0.053595]
[1732829776129,0.01511181,95043.0,95042.0,0.369235]
[1732829776737,0.01511181,95043.0,95042.0,0.053595]
[1732829776932,0.01611181,95043.0,95042.0,0.053595]
[1732829778841,0.01611181,95043.0,95042.0,0.063595]
[1732829783442,0.01611181,95043.0,95042.0,0.424395]
[1732829783835,0.403,95064.0,95042.0,0.68744]
[1732829784034,0.14088,95063.0,95052.0,0.3608]
[1732829784235,0.05258,95069.0,95067.0,0.052581]
[1732829784541,0.05258,95069.0,95068.0,0.05258]
[1732829784846,0.05258,95069.0,95068.0,0.3608]
[1732829784847,8.606e-05,95069.0,95068.0,0.3608]
[1732829785444,8.606e-05,95069.0,95068.0,0.41338]
[1732829785939,0.00908606,95069.0,95068.0,0.41438]
[1732829786139,0.01808606,95069.0,95068.0,0.41538]
[1732829787138,0.01808606,95069.0,95068.0,0.40938]
[1732829787452,0.01808606,95069.0,95068.0,0.41538]
[1732829792957,0.07066606,95069.0,95068.0,0.41538]
[1732829802062,0.07066606,95069.0,95068.0,0.40938]
[1732829803358,0.07066606,95069.0,95068.0,0.3628]
[1732829803555,0.07066606,95069.0,95060.0,0.3608]
[1732829803556,0.37722606,95069.0,95057.0,0.18914718]
[1732829803857,0.052586,95058.0,95057.0,0.18914718]
[1732829804560,0.052588,95054.0,95053.0,0.30478525]
[1732829805763,0.052588,95054.0,95053.0,0.052589]
[1732829806155,0.06640416,95054.0,95053.0,0.052589]
[1732829807059,0.07040416,95054.0,95053.0,0.052589]
[1732829807251,0.07440416,95054.0,95053.0,0.052589]
[1732829809163,0.02181616,95054.0,95050.0,0.3608]
[1732829809363,0.05259,95051.0,95050.0,0.3608]
[1732829810563,0.05459,95051.0,95050.0,0.41339]
[1732829812352,0.05759,95051.0,95050.0,0.41339]
[1732829815867,0.005,95051.0,95050.0,0.41339]
[1732829817267,0.005,95051.0,95050.0,0.40739]
[1732829818166,0.052583,95064.0,95063.0,0.052583]
[1732829818358,0.05266606,95069.0,95068.0,0.05258]
[1732829819462,0.06652798,95069.0,95068.0,0.05258]
[1732829819967,0.07252798,95069.0,95068.0,0.05358]
[1732829820359,0.07752798,95069.0,95068.0,0.05458]
[1732829825064,0.02494798,95069.0,95068.0,0.05458]
[1732829825765,0.01108606,95069.0,95068.0,0.05458]
[1732829830374,0.3608,95102.0,95095.0,0.052565]
[1732829830375,0.052568,95096.0,95095.0,0.052565]
[1732829830568,0.193408,95096.0,95095.0,0.052565]
[1732829831268,0.19353867,95096.0,95095.0,0.052565]
[1732829831973,0.19353867,95096.0,95095.0,0.058565]
[1732829832160,0.05269867,95096.0,95095.0,0.058565]
[1732829832362,0.19353867,95096.0,95095.0,0.052565]
[1732829832763,0.19353867,95096.0,95095.0,0.055565]
[1732829833372,0.19353867,95096.0,95095.0,0.064565]
[1732829833971,0.19353867,95096.0,95095.0,0.055565]
[1732829834167,0.0737501,95096.0,95095.0,0.064565]
[1732829834678,0.00013067,95096.0,95095.0,0.064565]
[1732829835977,0.05269567,95096.0,95095.0,0.064565]
[1732829842573,0.00013067,95096.0,95095.0,0.064565]
[1732829842975,0.05269567,95096.0,95095.0,0.064565]
[1732829847279,0.05269567,95096.0,95095.0,0.058565]
[1732829858795,0.05269567,95096.0,95095.0,0.049565]
[1732829858995,0.05269567,95096.0,95095.0,0.050565]
[1732829859196,0.05269567,95096.0,95095.0,0.042565]
[1732829862002,0.05269567,95096.0,95095.0,0.036565]
[1732829868497,0.00013067,95096.0,95095.0,0.036565]
[1732829869591,0.1,95100.0,95099.0,0.052563]
[1732829870594,0.10009187,95100.0,95099.0,0.052563]
[1732829871202,0.10009187,95100.0,95099.0,0.062563]
[1732829871400,0.10009187,95100.0,95099.0,0.378003]
[1732829871598,0.052553,95118.0,95117.0,0.052553]
[1732829872306,0.06657127,95118.0,95117.0,0.052553]
[1732829872513,0.06667932,95118.0,95117.0,0.052553]
[1732829874092,0.06667932,95118.0,95117.0,0.060553]
[1732829874301,0.06667932,95118.0,95117.0,0.069553]
[1732829877113,0.06667932,95118.0,95117.0,0.063553]
[1732829879096,0.06667932,95118.0,95117.0,0.057553]
[1732829879397,0.06667932,95118.0,95117.0,0.054553]
[1732829880901,0.06667932,95118.0,95117.0,0.008]
[1732829885404,0.06667932,95118.0,95085.0,0.36168]
[1732829885405,0.052567,95092.0,95085.0,0.36168]
[1732829885594,0.052567,95092.0,95085.0,0.3608]
[1732829885795,0.052567,95092.0,95075.0,0.3608]
[1732829885993,0.413367,95092.0,95075.0,0.3608]
[1732829886610,0.413367,95092.0,95083.0,0.052572]
[1732829888209,0.418367,95092.0,95083.0,0.052572]
[1732829888508,0.052571,95084.0,95083.0,0.052572]
[1732829889996,0.054571,95084.0,95083.0,0.052572]
[1732829892191,0.054571,95084.0,95083.0,0.046572]
[1732829896809,0.054571,95084.0,95075.0,0.3608]
[1732829896810,0.002,95084.0,95075.0,0.3608]
[1732829897108,0.052575,95079.0,95078.0,0.052574]
[1732829898408,0.01409204,95092.0,95075.0,0.3638]
[1732829898607,0.052576,95076.0,95075.0,0.3638]
[1732829898912,0.052576,95076.0,95075.0,0.414376]
[1732829899510,0.052576,95076.0,95075.0,0.413376]
[1732829899809,0.052576,95076.0,95075.0,0.417376]
[1732829901215,0.052576,95076.0,95075.0,0.414376]
[1732829901406,0.052576,95076.0,95075.0,0.417376]
[1732829902008,0.052576,95076.0,95075.0,0.416376]
[1732829902409,0.052576,95076.0,95075.0,0.413376]
[1732829902607,0.052576,95076.0,95075.0,0.414376]
[1732829903413,0.193168,95091.0,95075.0,0.414376]
[1732829903617,0.052573,95085.0,95084.0,0.052571]
[1732829904115,0.052566,95096.0,95095.0,0.052564]
[1732829904305,0.052566,95096.0,95095.0,0.413364]
[1732829905416,0.005,95096.0,95095.0,0.414364]
[1732829907005,0.005,95096.0,95095.0,0.408364]
[1732829907917,0.01361893,95111.0,95110.0,0.052557]
[1732829908223,0.01361893,95111.0,95110.0,0.413357]
[1732829908721,0.19326105,95118.0,95117.0,0.052553]
[1732829909021,0.14070805,95118.0,95117.0,0.052553]
[1732829910010,0.00010805,95118.0,95117.0,0.061553]
[1732829911122,0.00010805,95118.0,95117.0,0.070553]
[1732829912319,0.14056,95132.0,95131.0,0.052545]
[1732829913107,0.052543,95135.0,95134.0,0.052544]
[1732829913413,0.05262109,95135.0,95134.0,0.052544]
[1732829914022,7.809e-05,95135.0,95134.0,0.052544]
[1732829915320,7.809e-05,95135.0,95134.0,0.061544]
[1732829915520,7.809e-05,95135.0,95134.0,0.066544]
[1732829915820,7.809e-05,95135.0,95134.0,0.057544]
[1732829916012,7.809e-05,95135.0,95134.0,0.066544]
[1732829917921,7.809e-05,95135.0,95134.0,0.069544]
[1732829921433,0.36144,95153.0,95134.0,0.017]
[1732829921732,0.052531,95157.0,95156.0,0.052532]
[1732829922127,0.14056,95158.0,95156.0,0.046532]
[1732829922334,0.14056,95158.0,95157.0,0.052531]
[1732829922525,0.15468264,95158.0,95157.0,0.052531]
[1732829923330,0.01412264,95158.0,95157.0,0.052531]
[1732829924332,0.06665364,95158.0,95157.0,0.052531]
[1732829924636,0.06665364,95158.0,95157.0,0.061531]
[1732829924942,0.06665364,95158.0,95157.0,0.070531]
[1732829927823,0.06665364,95158.0,95157.0,0.018]
[1732829932243,0.20709364,95158.0,95157.0,0.018]
[1732829937038,0.20709364,95158.0,95157.0,0.012]
[1732829943646,0.01412264,95158.0,95157.0,0.012]
[1732829943849,0.06665364,95158.0,95157.0,0.064531]
[1732829945748,0.06665364,95158.0,95157.0,0.056531]
[1732829946149,0.06665364,95158.0,95157.0,0.054531]
[1732829946847,0.06665364,95158.0,95157.0,0.053531]
[1732829947046,0.07165364,95158.0,95157.0,0.054531]
[1732829950666,0.07165364,95158.0,95157.0,0.002]
[1732829951345,0.10785364,95158.0,95157.0,0.002]
[1732829952146,0.10785364,95158.0,95140.0,0.12216724]
[1732829952147,0.10785364,95158.0,95152.0,0.048534]
[1732829952349,0.052533,95153.0,95152.0,0.048534]
[1732829953350,0.052533,95153.0,95152.0,0.049534]
[1732829953943,0.052533,95153.0,95142.0,0.3608]
[1732829953944,0.05532264,95158.0,95148.0,0.052536]
[1732829954144,0.052536,95149.0,95148.0,0.052536]
[1732829955750,0.052536,95149.0,95148.0,0.053536]
[1732829956146,0.058536,95149.0,95148.0,0.053536]
[1732829957154,0.006,95149.0,95148.0,0.063536]
[1732829967056,0.006,95149.0,95148.0,0.057536]
[1732829967666,8.791e-05,95158.0,95157.0,0.052531]
[1732829967958,8.791e-05,95158.0,95157.0,0.413331]
[1732829969052,0.00608791,95158.0,95157.0,0.415331]
[1732829972360,0.00764112,95158.0,95157.0,0.415331]
[1732829982163,0.00764112,95158.0,95157.0,0.409331]
[1732829984576,0.00264112,95158.0,95157.0,0.408331]
[1732829993881,0.00164112,95158.0,95157.0,0.408331]
[1732829994184,0.00164112,95158.0,95157.0,0.407331]
[1732829997278,0.00164112,95158.0,95157.0,0.401331]
[1732829998278,0.14024,95179.0,95176.0,0.052521]
[1732829998482,0.14084001,95179.0,95176.0,0.052521]
[1732829998772,0.14024,95179.0,95176.0,0.052521]
[1732829999175,0.03758477,95177.0,95176.0,0.052521]
[1732829999474,0.03904998,95177.0,95176.0,0.052521]
[1732829999991,0.03904998,95177.0,95176.0,0.053521]
[1732830000773,0.09156998,95177.0,95176.0,0.053521]
[1732830001384,0.09156998,95177.0,95176.0,0.054521]
[1732830001675,0.03904998,95177.0,95176.0,0.054521]
[1732830009583,0.09156998,95177.0,95176.0,0.054521]
[1732830009789,0.09156998,95177.0,95176.0,0.002]
[1732830009975,0.09156998,95177.0,95151.0,0.07356136]
[1732830009976,0.052531,95158.0,95157.0,0.413331]
[1732830010575,0.05399621,95158.0,95157.0,0.413331]
[1732830010981,0.05399621,95158.0,95157.0,0.3608]
[1732830012085,0.05399621,95158.0,95157.0,0.3548]
[1732830012490,0.05399621,95158.0,95157.0,0.407331]
[1732830013487,0.05499621,95158.0,95157.0,0.407331]
[1732830014876,0.05499621,95158.0,95157.0,0.3548]
[1732830015896,0.05499621,95158.0,95157.0,0.407331]
[1732830019285,0.05499621,95158.0,95157.0,0.3548]
[1732830023698,0.05499621,95158.0,95157.0,0.407331]
[1732830027092,0.05499621,95158.0,95157.0,0.401331]
[1732830039705,0.05499621,95158.0,95157.0,0.052531]
[1732830041696,0.05499621,95158.0,95156.0,0.36237625]
[1732830042006,0.052531,95157.0,95156.0,0.36237625]
[1732830042201,0.052531,95157.0,95156.0,0.40890825]
[1732830042603,0.05399621,95157.0,95156.0,0.40890825]
[1732830044110,0.05499621,95157.0,95156.0,0.40890825]
[1732830045808,0.05499621,95157.0,95156.0,0.35637625]
[1732830052822,0.05499621,95157.0,95156.0,0.40890825]
[1732830054721,0.05499621,95157.0,95156.0,0.052532]
[1732830057122,0.05499621,95157.0,95156.0,0.046532]
[1732830061931,0.00246521,95157.0,95156.0,0.046532]
[1732830063142,0.44172,95175.0,95156.0,0.01]
[1732830063447,0.01346332,95176.0,95175.0,0.052521]
[1732830063833,8.477e-05,95177.0,95176.0,0.052521]
[1732830065845,8.477e-05,95177.0,95176.0,0.053521]
[1732830066042,8.477e-05,95177.0,95176.0,0.054521]
[1732830066635,8.477e-05,95177.0,95176.0,0.415321]
[1732830070245,0.05260477,95177.0,95176.0,0.415321]
[1732830070447,8.477e-05,95177.0,95176.0,0.415321]
[1732830072051,8.477e-05,95177.0,95176.0,0.409321]
[1732830073148,0.05260477,95177.0,95176.0,0.409321]
[1732830075753,0.05260477,95177.0,95161.0,0.0352]
[1732830075754,0.052533,95155.0,95154.0,0.052532]
[1732830075964,0.052533,95155.0,95154.0,0.089032]
[1732830081051,0.05253,95160.0,95157.0,0.052531]
[1732830081249,0.1398,95159.0,95158.0,0.052531]
[1732830082154,0.052527,95165.0,95164.0,0.052527]
[1732830082351,0.36088477,95177.0,95156.0,0.01]
[1732830082553,0.052523,95175.0,95174.0,0.052521]
[1732830084760,0.053523,95175.0,95174.0,0.053521]
[1732830085551,0.053523,95175.0,95174.0,0.054521]
[1732830087062,0.053523,95175.0,95174.0,0.048521]
[1732830089064,0.053523,95175.0,95174.0,0.002]
[1732830091660,0.193323,95175.0,95174.0,0.002]
[1732830099460,0.554123,95175.0,95174.0,0.002]
[1732830102150,0.554123,95175.0,95168.0,0.048525]
[1732830102355,0.052524,95169.0,95168.0,0.048525]
[1732830102756,0.05253,95165.0,95164.0,0.052527]
[1732830103557,0.052522,95174.0,95173.0,0.052522]
[1732830103756,0.192322,95174.0,95173.0,0.052522]
[1732830103961,0.052522,95174.0,95173.0,0.052522]
[1732830104462,0.192322,95174.0,95173.0,0.052522]
[1732830104974,0.192322,95174.0,95173.0,0.053522]
[1732830105771,0.192322,95174.0,95173.0,0.054522]
[1732830106065,0.195322,95174.0,95173.0,0.054522]
[1732830110470,0.195202,95174.0,95173.0,0.054522]
[1732830116172,0.003,95174.0,95173.0,0.054522]
[1732830116363,0.14268,95174.0,95173.0,0.054522]
[1732830117175,0.14268,95174.0,95173.0,0.048522]
[1732830118087,0.195202,95174.0,95173.0,0.002]
[1732830119281,0.195202,95174.0,95173.0,0.054522]
[1732830121384,0.195202,95174.0,95173.0,0.002]
[1732830124984,0.195202,95174.0,95173.0,0.054522]
[1732830128881,0.195202,95174.0,95173.0,0.002]
[1732830132182,0.052523,95171.0,95170.0,0.048524]
[1732830133592,0.055523,95171.0,95170.0,0.048524]
[1732830134694,0.055523,95171.0,95170.0,0.049524]
[1732830147089,0.055523,95171.0,95170.0,0.043524]
[1732830147291,0.195083,95171.0,95170.0,0.043524]
[1732830154091,0.195083,95171.0,95170.0,0.001]
[1732830155798,0.195083,95171.0,95170.0,0.053524]
[1732830159505,0.555883,95171.0,95170.0,0.053524]
[1732830162011,0.555883,95171.0,95170.0,0.052524]
[1732830162207,0.555883,95171.0,95170.0,0.047524]
[1732830164515,0.195083,95171.0,95170.0,0.047524]
[1732830164716,0.555883,95171.0,95170.0,0.047524]
[1732830166615,0.416323,95171.0,95170.0,0.047524]
[1732830166819,0.555723,95171.0,95170.0,0.047524]
[1732830173527,0.416323,95171.0,95170.0,0.047524]
[1732830173729,0.555723,95171.0,95170.0,0.047524]
[1732830174024,0.5032,95171.0,95170.0,0.047524]
[1732830174416,0.416323,95171.0,95170.0,0.047524]
[1732830174615,0.555723,95171.0,95170.0,0.047524]
[1732830176326,0.194923,95171.0,95170.0,0.047524]
[1732830177114,0.194923,95171.0,95170.0,0.041524]
[1732830178526,0.055523,95171.0,95170.0,0.041524]
[1732830179416,0.003,95171.0,95170.0,0.041524]
[1732830192229,0.003,95171.0,95170.0,0.035524]
[1732830204840,0.055523,95171.0,95170.0,0.035524]
[1732830207057,0.055523,95171.0,95170.0,0.029524]
[1732830207855,0.003,95171.0,95150.0,0.03947624]
[1732830208046,0.052534,95151.0,95150.0,0.00157624]
[1732830208240,0.191734,95151.0,95150.0,0.00157624]
[1732830210956,0.192734,95151.0,95150.0,0.00157624]
[1732830211846,0.20625682,95151.0,95150.0,0.00157624]
[1732830222062,0.01452282,95151.0,95150.0,0.04811124]
[1732830222363,0.15372282,95151.0,95150.0,0.04811124]
[1732830223167,0.20625682,95151.0,95150.0,0.04811124]
[1732830237171,0.20625682,95151.0,95150.0,0.04211124]
[1732830241570,0.20625682,95151.0,95147.0,0.0363]
[1732830241775,0.052536,95148.0,95147.0,0.0363]
[1732830243075,0.052536,95148.0,95147.0,0.089837]
[1732830248277,0.55313501,95151.0,95150.0,0.052535]
[1732830248575,0.552535,95151.0,95150.0,0.052535]
[1732830249669,0.5,95151.0,95150.0,0.052535]
[1732830250067,0.501,95151.0,95150.0,0.052535]
[1732830250983,0.553534,95151.0,95150.0,0.052535]
[1732830252075,0.192734,95151.0,95150.0,0.046535]
[1732830257183,0.1402,95151.0,95150.0,0.046535]
[1732830258282,0.192734,95151.0,95150.0,0.046535]
[1732830259288,0.053534,95151.0,95150.0,0.046535]
[1732830260574,0.053534,95151.0,95150.0,0.05986379]
[1732830260775,0.053534,95151.0,95150.0,0.046535]
[1732830267197,0.053534,95151.0,95150.0,0.040535]
[1732830271901,0.053534,95151.0,95143.0,0.01]
[1732830272104,0.053534,95151.0,95136.0,0.052542]
[1732830272105,0.052538,95144.0,95136.0,0.052542]
[1732830272401,0.052545,95133.0,95132.0,0.052545]
[1732830274805,0.052545,95133.0,95132.0,0.065545]
[1732830274806,0.06571798,95133.0,95132.0,0.065545]
[1732830275307,0.06571798,95133.0,95132.0,0.013]
[1732830277099,0.10251798,95133.0,95132.0,0.013]
[1732830279103,0.10264255,95133.0,95132.0,0.013]
[1732830280602,0.46344255,95133.0,95132.0,0.013]
[1732830282106,0.46344255,95133.0,95132.0,0.007]
[1732830290715,0.42664255,95133.0,95132.0,0.007]
[1732830291218,0.4476817,95133.0,95132.0,0.007]
[1732830297110,0.4476817,95133.0,95132.0,0.001]
[1732830301219,0.42664255,95133.0,95132.0,0.001]
[1732830301425,0.56528255,95133.0,95132.0,0.1069]
[1732830301725,0.56528255,95133.0,95132.0,0.159445]
[1732830304016,0.56528255,95133.0,95132.0,0.1069]
[1732830308412,0.56528255,95133.0,95132.0,0.159445]
[1732830309612,0.36092457,95133.0,95132.0,0.159445]
[1732830310617,0.36092457,95133.0,95132.0,0.17247018]
[1732830312123,0.36092457,95133.0,95132.0,0.16647018]
[1732830313223,0.36092457,95133.0,95132.0,0.153445]
[1732830323833,0.00012457,95133.0,95132.0,0.153445]
[1732830327233,0.00012457,95133.0,95132.0,0.147445]
[1732830330137,0.05266857,95133.0,95132.0,0.123245]
[1732830331039,0.05266857,95133.0,95132.0,0.052545]
[1732830331235,0.00054858,95133.0,95127.0,0.3608]
[1732830331429,0.00054858,95133.0,95124.0,8.394e-05]
[1732830331430,0.052549,95125.0,95124.0,8.394e-05]
[1732830331638,0.190989,95125.0,95124.0,8.394e-05]
[1732830332142,0.506349,95125.0,95124.0,8.394e-05]
[1732830334038,0.507349,95125.0,95124.0,0.00908394]
[1732830334346,0.506349,95125.0,95124.0,8.394e-05]
[1732830334540,0.507349,95125.0,95124.0,0.00708394]
[1732830334735,0.52052249,95125.0,95124.0,0.01008394]
[1732830335141,0.20516249,95125.0,95124.0,0.01008394]
[1732830336034,0.20516249,95125.0,95096.0,0.01]
[1732830336035,0.052555,95113.0,95104.0,0.05256]
[1732830336241,0.551795,95113.0,95104.0,0.05256]
[1732830337238,0.552795,95113.0,95112.0,0.01057701]
[1732830337438,0.868195,95113.0,95112.0,0.009]
[1732830337637,0.052564,95097.0,95096.0,0.01]
[1732830339239,0.052564,95097.0,95096.0,0.015]
[1732830339442,0.052564,95097.0,95096.0,0.067565]
[1732830339642,0.053564,95097.0,95096.0,0.072565]
[1732830339835,0.06662989,95097.0,95096.0,0.01]
[1732830342137,0.06662989,95097.0,95096.0,0.004]
[1732830342440,0.07271857,95097.0,95096.0,0.004]
[1732830342650,0.052568,95090.0,95076.0,0.071]
[1732830342830,0.551808,95090.0,95076.0,0.071]
[1732830343035,0.052576,95075.0,95070.0,0.01]
[1732830343240,0.551816,95075.0,95064.0,0.052582]
[1732830343538,0.551816,95075.0,95066.0,0.052581]
[1732830343844,0.551816,95075.0,95067.0,0.052581]
[1732830344036,0.49924,95075.0,95058.0,0.0479]
[1732830344235,0.3608,95075.0,95074.0,0.0541546]
[1732830344546,0.49928,95075.0,95074.0,0.052577]
[1732830345039,0.3608,95075.0,95074.0,0.052577]
[1732830345643,0.3618,95075.0,95074.0,0.052577]
[1732830346243,0.3638,95075.0,95074.0,0.052577]
[1732830347136,0.3628,95075.0,95074.0,0.052577]
[1732830347336,0.3648,95075.0,95074.0,0.052577]
[1732830351064,0.417376,95075.0,95074.0,0.052577]
[1732830351959,0.3648,95075.0,95072.0,0.0381]
[1732830352154,0.052578,95073.0,95072.0,0.0381]
[1732830352354,0.052578,95073.0,95072.0,0.090678]
[1732830353661,0.055578,95073.0,95072.0,0.090678]
[1732830354352,0.056578,95073.0,95072.0,0.090678]
[1732830354753,0.004,95073.0,95072.0,0.090678]
[1732830356456,0.14232,95073.0,95072.0,0.090678]
[1732830357048,0.14232,95073.0,95072.0,0.084678]
[1732830357367,0.194898,95073.0,95072.0,0.084678]
[1732830357954,0.056578,95073.0,95072.0,0.084678]
[1732830358263,0.14232,95073.0,95072.0,0.084678]
[1732830360561,0.004,95073.0,95072.0,0.084678]
[1732830360767,0.3608,95082.0,95081.0,0.052573]
[1732830360956,0.052567,95093.0,95092.0,0.052565]
[1732830361164,0.052565,95096.0,95095.0,0.052565]
[1732830361363,0.190885,95096.0,95095.0,0.052565]
[1732830363664,0.052565,95096.0,95095.0,0.052565]
[1732830363863,0.190885,95096.0,95095.0,0.052565]
[1732830364171,0.197885,95096.0,95095.0,0.053565]
[1732830364367,0.059565,95096.0,95095.0,0.001]
[1732830364565,0.14532,95096.0,95095.0,0.053565]
[1732830364768,0.197885,95096.0,95095.0,0.053565]
[1732830365069,0.059565,95096.0,95095.0,0.054565]
[1732830365375,0.206885,95096.0,95095.0,0.054565]
[1732830367158,0.016,95096.0,95095.0,0.054565]
[1732830367361,0.15432,95096.0,95095.0,0.054565]
[1732830367959,0.016,95096.0,95095.0,0.054565]
[1732830368963,0.213285,95096.0,95095.0,0.054565]
[1732830370466,0.16072,95096.0,95095.0,0.054565]
[1732830371368,0.016,95096.0,95095.0,0.054565]
[1732830372163,0.016,95096.0,95095.0,0.048565]
[1732830373070,0.068565,95096.0,95095.0,0.048565]
[1732830379580,0.016,95096.0,95095.0,0.048565]
[1732830381581,0.068565,95096.0,95095.0,0.048565]
[1732830383281,0.068565,95096.0,95095.0,0.001]
[1732830385974,0.104465,95096.0,95095.0,0.001]
[1732830387186,0.052566,95093.0,95092.0,0.005]
[1732830388985,0.068566,95093.0,95092.0,0.006]
[1732830390397,0.016,95093.0,95092.0,0.058567]
[1732830390586,0.068566,95093.0,95092.0,0.058567]
[1732830399891,0.016,95093.0,95092.0,0.058567]
[1732830402094,0.016,95093.0,95092.0,0.052567]
[1732830402710,0.016,95093.0,95092.0,0.368047]
[1732830402999,8.868e-05,95097.0,95096.0,0.052565]
[1732830403891,0.195995,95115.0,95109.0,0.052558]
[1732830404096,0.195995,95115.0,95110.0,0.0703]
[1732830404499,0.052555,95115.0,95110.0,0.0703]
[1732830404695,0.14344,95117.0,95116.0,0.052554]
[1732830404998,0.00010516,95117.0,95116.0,0.052554]
[1732830406099,0.00710516,95117.0,95116.0,0.053554]
[1732830406497,0.05965816,95117.0,95116.0,0.001]
[1732830406693,0.57289816,95117.0,95116.0,0.002]
[1732830407796,0.61009816,95117.0,95116.0,0.002]
[1732830410911,0.57289816,95117.0,95116.0,0.002]
[1732830411201,0.15950516,95117.0,95116.0,0.054554]
[1732830411391,0.21205816,95117.0,95116.0,0.054554]
[1732830417200,0.06865816,95117.0,95116.0,0.048554]
[1732830432113,0.06865816,95117.0,95116.0,0.042554]
[1732830446423,0.3608,95126.0,95116.0,0.042554]
[1732830446424,0.00056001,95162.0,95134.0,0.0039]
[1732830446632,0.02104024,95167.0,95155.0,0.3608]
[1732830446825,0.14932,95186.0,95166.0,0.3608]
[1732830447129,0.052518,95181.0,95180.0,0.3548]
[1732830447318,0.14932,95185.0,95180.0,0.3548]
[1732830447520,0.052518,95181.0,95180.0,0.052518]
[1732830447721,0.052518,95181.0,95179.0,0.052519]
[1732830447925,0.00011396,95184.0,95183.0,0.052517]
[1732830448527,0.00011396,95184.0,95183.0,0.413317]
[1732830448731,0.14928,95193.0,95192.0,0.052512]
[1732830448931,0.1,95200.0,95199.0,0.052508]
[1732830449126,0.26254051,95200.0,95199.0,0.052508]
[1732830449641,0.11326051,95200.0,95199.0,0.052508]
[1732830449834,0.11336599,95200.0,95199.0,0.052508]
[1732830450032,0.10010548,95200.0,95199.0,0.052508]
[1732830450245,0.10010548,95200.0,95199.0,0.061508]
[1732830450429,0.04390548,95200.0,95199.0,0.061508]
[1732830451128,0.04390548,95200.0,95199.0,0.069508]
[1732830451639,0.0476851,95211.0,95209.0,0.052502]
[1732830451842,0.0606363,95211.0,95210.0,0.3608]
[1732830452636,0.06074727,95211.0,95210.0,0.3608]
[1732830453235,0.04779607,95211.0,95210.0,0.3608]
[1732830453934,0.04641322,95218.0,95217.0,0.052498]
[1732830454934,0.04654036,95218.0,95217.0,0.052498]
[1732830455139,0.052482,95247.0,95231.0,0.05249]
[1732830455437,0.46230477,95253.0,95242.0,0.052484]
[1732830455637,0.41046677,95253.0,95242.0,0.315]
[1732830455839,0.04902677,95253.0,95245.0,0.052483]
[1732830456039,0.03703573,95246.0,95245.0,0.052483]
[1732830457132,0.052483,95245.0,95241.0,0.3608]
[1732830457339,0.04902677,95253.0,95241.0,0.3608]
[1732830457540,0.04902677,95253.0,95243.0,0.052483]
[1732830457850,0.052483,95244.0,95241.0,0.3608]
[1732830458043,0.052483,95244.0,95241.0,0.413284]
[1732830458248,0.052484,95243.0,95241.0,0.3608]
[1732830458545,0.04902677,95253.0,95241.0,0.3608]
[1732830458546,0.00011309,95249.0,95241.0,0.3608]
[1732830458748,0.00011309,95249.0,95243.0,0.009]
[1732830459048,0.052482,95246.0,95243.0,0.009]
[1732830459253,0.052482,95246.0,95241.0,0.3628]
[1732830459438,0.00011309,95249.0,95241.0,0.3628]
[1732830459634,0.052482,95246.0,95241.0,0.3628]
[1732830459851,0.052483,95244.0,95243.0,0.009]
[1732830460249,0.05259409,95249.0,95243.0,0.009]
[1732830460447,0.00011309,95249.0,95248.0,0.052481]
[1732830462146,0.00011309,95249.0,95248.0,0.055481]
[1732830462349,0.00011309,95249.0,95248.0,0.064481]
[1732830462743,0.00011309,95249.0,95248.0,0.057481]
[1732830462941,0.04902677,95253.0,95252.0,0.052479]
[1732830463851,0.04915231,95253.0,95252.0,0.052479]
[1732830464744,0.04915231,95253.0,95252.0,0.061479]
[1732830464949,0.04915231,95253.0,95252.0,0.070479]
[1732830465852,0.04915231,95253.0,95252.0,0.062479]
[1732830466744,0.04915231,95253.0,95252.0,0.053479]
[1732830468657,0.10163031,95253.0,95252.0,0.053479]
[1732830468853,0.10163031,95253.0,95252.0,0.052479]
[1732830469855,0.10163031,95253.0,95249.0,0.52504]
[1732830469856,0.04915231,95253.0,95249.0,0.36168]
[1732830470055,0.05248,95250.0,95249.0,0.413279]
[1732830472558,0.04915231,95253.0,95252.0,0.052479]